fUST/lending_fUST_20251231
["ID","MTS","AMOUNT","RATE_DAILY","PERIOD"]
[400193175,1767184239135,-624.86330411,0.00011512,2]
[400193176,1767184239144,-624.86330411,0.00011512,2]
[400193177,1767184239154,-624.86330411,0.00011512,2]
[400193178,1767184239164,-624.86330411,0.00011512,2]
[400193179,1767184239174,-624.86330411,0.00011512,2]
[400193180,1767184239183,-624.86330411,0.00011512,2]
[400193181,1767184239193,-624.86330411,0.00011512,2]
[400193182,1767184239203,-624.86330411,0.00011512,2]
[400193183,1767184239213,-645255.59045967,0.00011513,2]
[400193184,1767184239222,-500.0,0.00011513,2]
[400193185,1767184239232,-150.0,0.00011568,2]
[400193186,1767184239242,-150.0,0.00011568,2]
[400193187,1767184239251,-150.0,0.00011568,2]
[400193188,1767184239261,-500.0,0.00011568,2]
[400193189,1767184239271,-500.0,0.00011568,2]
[400193190,1767184239280,-150.0,0.00011705,2]
[400193191,1767184239290,-151.92746792,0.00011705,2]
[400193192,1767184239299,-150.0,0.00011705,2]
[400193193,1767184239308,-643.73534753,0.00011705,2]
[400193194,1767184239318,-500.0,0.00011705,2]
[400193195,1767184239327,-234.67111133,0.00011842,2]
[400193196,1767184239337,-150.0,0.00011842,2]
[400193197,1767184239346,-491.17925611,0.00011842,2]
[400193198,1767184239356,-300.0,0.00011842,2]
[400193199,1767184239366,-300.0,0.00011842,2]
[400193200,1767184239375,-300.0,0.00011842,2]
[400193201,1767184239384,-300.0,0.00011842,2]
[400193202,1767184239394,-300.0,0.00011842,2]
[400193203,1767184239403,-300.0,0.00011842,2]
[400193204,1767184239413,-300.0,0.00011842,2]
[400193205,1767184239422,-300.0,0.00011842,2]
[400193206,1767184239431,-300.0,0.00011842,2]
[400193207,1767184239441,-300.0,0.00011842,2]
[400193208,1767184239450,-300.0,0.00011842,2]
[400193209,1767184239460,-300.0,0.00011842,2]
[400193210,1767184239470,-300.0,0.00011842,2]
[400193211,1767184239480,-300.0,0.00011842,2]
[400193212,1767184239489,-300.0,0.00011842,2]
[400193213,1767184239499,-600.0,0.00011843,2]
[400193214,1767184239508,-1676.94145209,0.00011956,2]
[400193215,1767184239518,-225.15985308,0.00011979,2]
[400193216,1767184239527,-1030.63704642,0.00012275,2]
[400193217,1767184239536,-551.49720461,0.00012504,2]
[400193218,1767184239547,-151.0,0.000126,2]
[400193219,1767184239557,-420.0,0.00012639,2]
[400193220,1767184239568,-765.0,0.0001264,2]
[400193221,1767184239577,-260.63,0.00012688,2]
[400193222,1767184239587,-335.65922253,0.00012852,2]
[400193223,1767184239736,-151.0,0.000129,2]
[400193224,1767184239754,-12364.38616475,0.000129,2]
[400193225,1767184239764,-720.0,0.00013027,2]
[400193226,1767184239774,-1030.63704642,0.00013082,2]
[400193227,1767184239783,-396.08514074,0.00013169,2]
[400193228,1767184239792,-1047.07603707,0.00013188,2]
[400193229,1767184239802,-722.05123545,0.00013195,2]
[400193230,1767184239810,-151.0,0.000132,2]
[400193231,1767184239819,-500.0,0.00013273,2]
[400193232,1767184239828,-413.99757981,0.00013273,2]
[400193233,1767184239837,-381.16221649,0.00013273,2]
[400193234,1767184239847,-500.0,0.00013273,2]
[400193235,1767184239856,-500.0,0.00013273,2]
[400193236,1767184239866,-500.0,0.00013273,2]
[400193237,1767184239875,-500.0,0.00013273,2]
[400193238,1767184239884,-500.0,0.00013273,2]
[400193239,1767184239893,-500.0,0.00013273,2]
[400193240,1767184239902,-500.0,0.00013273,2]
[400193241,1767184239911,-500.0,0.00013273,2]
[400193242,1767184239920,-500.0,0.00013273,2]
[400193243,1767184239930,-500.0,0.00013273,2]
[400193244,1767184239939,-500.0,0.00013273,2]
[400193245,1767184239949,-500.0,0.00013273,2]
[400193246,1767184239958,-500.0,0.00013273,2]
[400193247,1767184239968,-500.0,0.00013273,2]
[400193248,1767184239977,-500.0,0.00013273,2]
[400193249,1767184239988,-500.0,0.00013273,2]
[400193250,1767184240000,-500.0,0.00013273,2]
[400193251,1767184240010,-500.0,0.00013273,2]
[400193252,1767184240020,-500.0,0.00013273,2]
[400193253,1767184240031,-500.0,0.00013273,2]
[400193254,1767184240041,-315.88685405,0.00013273,2]
[400193255,1767184240052,-500.0,0.00013273,2]
[400193256,1767184240063,-544.63270575,0.00013273,2]
[400193257,1767184240074,-500.0,0.00013273,2]
[400193258,1767184240084,-500.0,0.00013273,2]
[400193259,1767184240094,-500.0,0.00013273,2]
[400193260,1767184240104,-500.0,0.00013273,2]
[400193261,1767184240114,-500.0,0.00013273,2]
[400193262,1767184240123,-500.0,0.00013273,2]
[400193263,1767184240133,-500.0,0.00013273,2]
[400193264,1767184240142,-500.0,0.00013273,2]
[400193265,1767184240152,-500.0,0.00013273,2]
[400193266,1767184240166,-602.47879957,0.00013273,2]
[400193267,1767184240175,-500.0,0.00013273,2]
[400193268,1767184240185,-500.0,0.00013273,2]
[400193269,1767184240194,-500.0,0.00013273,2]
[400193270,1767184240203,-500.0,0.00013273,2]
[400193271,1767184240213,-500.0,0.00013273,2]
[400193272,1767184240222,-500.0,0.00013273,2]
[400193273,1767184240232,-500.0,0.00013273,2]
[400193274,1767184240241,-499.96763801,0.00013273,2]
[400193275,1767184240251,-500.0,0.00013273,2]
[400193276,1767184240261,-151.0,0.000134,2]
[400193277,1767184240271,-293.58713511,0.00013507,7]
[400193278,1767184240281,-4053.71890925,0.0001354,2]
[400193312,1767184240709,-5946.28109075,0.0001354,2]
[400193314,1767184240719,-300.0,0.00013673,2]
[400193316,1767184240728,-3753.71890925,0.00013696,2]
[400193346,1767184244728,-63338.93020346,0.00013696,2]
[400193347,1767184244740,-1313.0,0.00013696,2]
[400193348,1767184245384,-596.16442264,0.00013696,2]
[400193349,1767184245395,-11940.89469203,0.00013696,2]
[400193360,1767184247375,-2281.28905335,0.00013696,2]
[400193385,1767184341175,969.86,0.00028767,120]
[400193678,1767185080034,169.997478,5.82e-05,2]
[400193712,1767185204818,-377.68601388,0.00011035,2]
[400193713,1767185208529,-300.0,0.00011035,2]
[400193714,1767185213205,-848.69969862,0.00011035,2]
[400193880,1767185437754,-578.0,0.00011232,2]
[400193881,1767185437763,-300.0,0.00011791,2]
[400193882,1767185437772,-1200.0,0.00011791,2]
[400193883,1767185437782,-1200.0,0.00011792,2]
[400193884,1767185437792,-300.0,0.00011792,2]
[400193885,1767185437801,-332.43113781,0.00011793,2]
[400193886,1767185437810,-10000.0,0.00011793,2]
[400193887,1767185437820,-987.36092364,0.00011819,2]
[400193888,1767185437830,-754.13871287,0.00011821,2]
[400193889,1767185437839,-548.53384646,0.00011821,2]
[400193890,1767185437849,-11787.77700262,0.00011821,2]
[400193891,1767185437860,-1197.57370402,0.00011821,2]
[400193892,1767185437874,-7640.65963647,0.00011821,2]
[400193907,1767185440253,-418.96595159,0.0001123,2]
[400193908,1767185440262,-7227.1589219,0.00011821,2]
[400193909,1767185440272,-166.38534424,0.00012027,2]
[400193910,1767185440282,-300.0,0.00012028,2]
[400193911,1767185440292,-300.0,0.00012028,2]
[400193912,1767185440301,-300.0,0.00012028,2]
[400193913,1767185440311,-300.0,0.00012028,2]
[400193914,1767185440321,-300.0,0.00012028,2]
[400193915,1767185440330,-300.0,0.00012028,2]
[400193916,1767185440339,-300.0,0.00012028,2]
[400193917,1767185440350,-300.0,0.00012028,2]
[400193918,1767185440359,-300.0,0.00012028,2]
[400193919,1767185440369,-300.0,0.00012028,2]
[400193920,1767185440378,-300.0,0.00012028,2]
[400193921,1767185440387,-300.0,0.00012028,2]
[400193922,1767185440397,-300.0,0.00012028,2]
[400193923,1767185440407,-300.0,0.00012028,2]
[400193924,1767185440418,-300.0,0.00012028,2]
[400193925,1767185440428,-600.0,0.00012268,2]
[400193926,1767185440438,-173.52111624,0.00012279,2]
[400193927,1767185440447,-260.63,0.00012664,2]
[400193928,1767185440457,-481.99819078,0.00012832,2]
[400193929,1767185440467,-12364.38616475,0.000129,2]
[400193930,1767185440477,-1173.17419189,0.00012925,2]
[400193931,1767185440486,-349.0,0.00012947,2]
[400193932,1767185440496,-439.95037811,0.00012948,2]
[400193957,1767185444293,-754.13871287,0.0001123,2]
[400193958,1767185444303,-325.04962189,0.00012948,2]
[400193959,1767185444313,-420.0,0.00012948,2]
[400193960,1767185444325,-154.0,0.0001297,2]
[400193961,1767185444335,-150.0,0.00012999,2]
[400193962,1767185444345,-150.0,0.00012999,2]
[400193963,1767185444355,-151.92746792,0.00012999,2]
[400193964,1767185444364,-150.0,0.00012999,2]
[400193965,1767185444374,-225.15985308,0.00013136,2]
[400193966,1767185444383,-234.67111133,0.00013136,2]
[400193967,1767185444393,-150.0,0.00013136,2]
[400193968,1767185444403,-2469.43277198,0.00013261,2]
[400193969,1767185444413,-500.0,0.00013273,2]
[400193970,1767185444423,-500.0,0.00013273,2]
[400193971,1767185444434,-500.0,0.00013273,2]
[400193972,1767185444443,-500.0,0.00013273,2]
[400193973,1767185444453,-500.0,0.00013273,2]
[400193974,1767185444462,-500.0,0.00013273,2]
[400193975,1767185444472,-500.0,0.00013273,2]
[400193976,1767185444482,-76.13533769,0.00013273,2]
[400194081,1767185494588,2691.20112673,0.00011035,2]
[400194139,1767185590636,162.12873469,0.00024511,120]
[400194150,1767185794748,522.37,0.0001,90]
[400194189,1767186105103,160.0,0.000287,120]
[400194190,1767186131043,159.0,0.000287,120]
[400194197,1767186377944,-155.03442944,0.0001104,2]
[400194213,1767186518297,1926.06477035,0.00011024,2]
[400194327,1767186631760,-576.0,0.00011129,2]
[400194328,1767186631769,-369.10147349,0.00011129,2]
[400194329,1767186631778,-220.34746231,0.00011167,2]
[400194330,1767186631813,-113.03821589,0.00011167,2]
[400194331,1767186631823,-197.83727674,0.00011714,2]
[400194337,1767186637816,-571.02461395,0.00011714,2]
[400194338,1767186637827,-431.13810931,0.00011714,2]
[400194339,1767186637837,-300.0,0.00011714,2]
[400194340,1767186637846,-16.53264983,0.00011714,2]
[400194341,1767186637870,-283.46735017,0.00011714,2]
[400194342,1767186637880,-388.0,0.00011714,2]
[400194343,1767186637889,-222.81166504,0.00011715,2]
[400194344,1767186637898,-891.24666015,0.00011715,2]
[400194345,1767186637907,-185.98528208,0.00011715,2]
[400194346,1767186637919,-1819.31970326,0.00011715,2]
[400194347,1767186637928,-170.70769257,0.00011715,2]
[400194348,1767186637937,-682.83077027,0.00011715,2]
[400194349,1767186637946,-1536.36923311,0.00011715,2]
[400194350,1767186637955,-2731.32308108,0.00011715,2]
[400194351,1767186637965,-350.0,0.00011715,2]
[400194352,1767186637974,-184.56677848,0.00011731,2]
[400194353,1767186637984,-500.0,0.00011826,2]
[400194354,1767186637993,-500.0,0.00011826,2]
[400194355,1767186638002,-500.0,0.00011826,2]
[400194356,1767186638012,-479.52633987,0.00011826,2]
[400194357,1767186638022,-500.0,0.00011826,2]
[400194358,1767186638032,-231.27122495,0.00011826,2]
[400194359,1767186638041,-500.0,0.00011826,2]
[400194360,1767186638051,-500.0,0.00011826,2]
[400194361,1767186638060,-500.0,0.00011826,2]
[400194362,1767186638070,-500.0,0.00011826,2]
[400194363,1767186638079,-500.0,0.00011826,2]
[400194364,1767186638088,-500.0,0.00011826,2]
[400194365,1767186638098,-408.17117408,0.00011826,2]
[400194366,1767186638107,-500.0,0.00011826,2]
[400194367,1767186638118,-500.0,0.00011826,2]
[400194368,1767186638129,-500.0,0.00011826,2]
[400194369,1767186638138,-500.0,0.00011826,2]
[400194370,1767186638148,-500.0,0.00011826,2]
[400194371,1767186638159,-500.0,0.00011826,2]
[400194372,1767186638169,-500.0,0.00011826,2]
[400194373,1767186638179,-500.0,0.00011826,2]
[400194374,1767186638189,-500.0,0.00011826,2]
[400194375,1767186638199,-375.37195178,0.00011826,2]
[400194376,1767186638209,-500.0,0.00011826,2]
[400194377,1767186638219,-500.0,0.00011826,2]
[400194378,1767186638229,-499.99999997,0.00011826,2]
[400194379,1767186638239,-500.0,0.00011826,2]
[400194381,1767186638248,-500.0,0.00011826,2]
[400194382,1767186638258,-293.04659002,0.00011826,2]
[400194383,1767186638267,-500.0,0.00011826,2]
[400194384,1767186638277,-500.0,0.00011826,2]
[400194385,1767186638434,-500.0,0.00011826,2]
[400194386,1767186638443,-500.0,0.00011826,2]
[400194387,1767186638453,-500.0,0.00011826,2]
[400194388,1767186638463,-376.3050806,0.00011826,2]
[400194389,1767186638472,-569.75238981,0.00011826,2]
[400194390,1767186638484,-500.0,0.00011826,2]
[400194391,1767186638494,-500.0,0.00011826,2]
[400194392,1767186638504,-500.0,0.00011826,2]
[400194393,1767186638514,-228.45731979,0.00011826,2]
[400194394,1767186638523,-500.0,0.00011826,2]
[400194395,1767186638533,-500.0,0.00011826,2]
[400194396,1767186638543,-500.0,0.00011826,2]
[400194397,1767186638552,-500.0,0.00011826,2]
[400194398,1767186638562,-500.0,0.00011826,2]
[400194399,1767186638571,-664.18727269,0.00011826,2]
[400194400,1767186638581,-664.18727269,0.00011826,2]
[400194401,1767186638591,-664.18727269,0.00011826,2]
[400194402,1767186638600,-664.18727269,0.00011826,2]
[400194403,1767186638611,-409.21589066,0.00011826,2]
[400194404,1767186638620,-664.18727269,0.00011826,2]
[400194405,1767186638630,-664.18727269,0.00011826,2]
[400194406,1767186638640,-664.18727269,0.00011826,2]
[400194407,1767186638650,-664.18727269,0.00011826,2]
[400194408,1767186638660,-664.18727269,0.00011826,2]
[400194409,1767186638669,-500.0,0.00011826,2]
[400194410,1767186638679,-500.0,0.00011826,2]
[400194411,1767186638689,-664.18727269,0.00011826,2]
[400194412,1767186638699,-500.0,0.00011826,2]
[400194413,1767186638708,-205.22023899,0.00011826,2]
[400194414,1767186638718,-664.18727269,0.00011826,2]
[400194415,1767186638727,-743.47462837,0.00011826,2]
[400194416,1767186638737,-743.47462837,0.00011826,2]
[400194417,1767186638747,-743.47462837,0.00011826,2]
[400194418,1767186638756,-98169.48114696,0.00011827,2]
[400194419,1767186638776,-2829.82727959,0.00011827,2]
[400194420,1767186638790,-3199.61201068,0.00011827,2]
[400194421,1767186638801,-1070.74588555,0.00011827,2]
[400194422,1767186638813,-810.13659507,0.00011827,2]
[400194423,1767186638824,-424.50976335,0.00011827,2]
[400194424,1767186638835,-6636.06415724,0.00011827,2]
[400194441,1767186644231,-9677.8185,0.00011827,2]
[400194444,1767186645996,-972.0,0.00011827,2]
[400194487,1767186836232,562.7799593,0.00011,2]
[400194520,1767186962788,212.8167766,0.00010759,2]
[400194555,1767187200837,-200.0,0.00011204,2]
[400194556,1767187200881,-639.82820452,0.00011581,2]
[400194557,1767187200901,-364.79094625,0.00011581,2]
[400194558,1767187200922,-104.86123513,0.0001159,2]
[400194559,1767187200947,-202.06476487,0.0001159,2]
[400194560,1767187200967,-326.71796464,0.00011653,2]
[400194561,1767187200987,-1109.4803859,0.00011727,2]
[400194562,1767187201007,-150.22209924,0.00011737,2]
[400194563,1767187201027,-300.0,0.00011825,2]
[400194564,1767187202446,300.0,0.00011825,2]
[400194569,1767187266252,4363.77128404,0.00010919,2]
[400194570,1767187266274,300.0,0.00010919,2]
[400194571,1767187266295,326.71796464,0.00010919,2]
[400194572,1767187266317,306.926,0.00010919,2]
[400194573,1767187266339,804.61915077,0.00010919,2]
[400194574,1767187266359,200.0,0.00010919,2]
[400194575,1767187269335,-1767.79769255,0.00010919,2]
[400194611,1767187403689,10000.01,0.00010913,2]
[400194612,1767187403714,10000.01,0.00010913,2]
[400194613,1767187403740,9193.8991346,0.00010913,2]
[400194626,1767187464781,-245.541,0.00011449,2]
[400194627,1767187464829,-300.0,0.00011449,2]
[400194628,1767187464881,-913.62278499,0.00011449,2]
[400194629,1767187464903,-1565.81372837,0.00011474,2]
[400194630,1767187464938,-3434.18627163,0.00011474,2]
[400194632,1767187465050,-205.37017196,0.00011542,2]
[400194650,1767187507710,310.48852969,0.00011,2]
[400194651,1767187507732,1565.81372837,0.00011,2]
[400194652,1767187507754,1459.16378499,0.00011,2]
[400194653,1767187514085,-5258.22380298,0.00011,2]
[400194654,1767187514196,-10000.01,0.00011,2]
[400194655,1767187514336,-157.8114192,0.00011,2]
[400194656,1767187516564,-10000.01,0.00011,2]
[400194657,1767187516679,-10000.01,0.00011,2]
[400194658,1767187516771,-10000.01,0.00011,2]
[400194659,1767187517557,-505.93169808,0.00011,2]
[400194660,1767187519078,-565.16916983,0.00011,2]
[400194661,1767187519651,-2262.72047505,0.00011,2]
[400194662,1767187519880,-5474.5690499,0.00011,2]
[400194890,1767187838126,-707.0,0.00011541,2]
[400194891,1767187838137,-300.0,0.00011541,2]
[400194892,1767187838147,-582.0,0.00011541,2]
[400194893,1767187838157,-906.42328974,0.00011542,2]
[400194894,1767187838167,-2039.45240192,0.00011542,2]
[400194895,1767187838178,-3625.69315897,0.00011542,2]
[400194896,1767187838188,-197.31873911,0.00011542,2]
[400194897,1767187838198,-1775.86865196,0.00011542,2]
[400194898,1767187838207,-3157.0998257,0.00011542,2]
[400194899,1767187838217,-4932.96847765,0.00011542,2]
[400194900,1767187838228,-320.18360534,0.00011543,2]
[400194901,1767187838237,-2479.43651336,0.00011554,2]
[400194902,1767187838249,-245.541,0.0001159,2]
[400194903,1767187838259,-887.58430872,0.00011627,2]
[400194904,1767187838270,-160334.90749801,0.00011726,2]
[400194905,1767187838292,-3644.39,0.00011726,2]
[400194906,1767187838464,226.60582244,0.00010965,2]
[400194908,1767187840524,-5765.88677573,0.00011726,2]
[400194944,1767187846139,-1337.380915,0.00011726,2]
[400194947,1767187846304,-3583.68081457,0.00011726,2]
[400194948,1767187846327,-5116.89627695,0.00011726,2]
[400194949,1767187846338,-693.15367408,0.00011726,2]
[400194975,1767187928846,159.76518805,0.00024386,120]
[400195136,1767188023134,202.75608127,0.00010739,2]
[400195205,1767188148517,999.0,0.00010959,2]
[400195206,1767188148889,2556.75350528,0.00010584,2]
[400195248,1767188283912,224.27318784,0.00010696,2]
[400195360,1767188450964,295.85030148,0.00010965,2]
[400195388,1767188611669,5494.77110169,0.00010483,2]
[400195389,1767188611694,1714.11987131,0.00010483,2]
[400195414,1767188917586,176.15262882,0.00010811,2]
[400195415,1767188920635,335.5554382,0.00010855,2]
[400195416,1767188923379,150.69381248,0.00010855,2]
[400195417,1767188926183,602.77524991,0.00010855,2]
[400195418,1767188929296,1356.24431231,0.00010855,2]
[400195419,1767188932239,2411.10099965,0.00010855,2]
[400195454,1767189032102,-327.07352485,0.00011055,2]
[400195456,1767189032112,-575.0,0.00011055,2]
[400195458,1767189032121,-710.06744696,0.00011368,2]
[400195459,1767189032131,-375.21947872,0.0001138,2]
[400195460,1767189032140,-300.0,0.00011425,2]
[400195461,1767189032150,-300.0,0.00011425,2]
[400195462,1767189032159,-166.0,0.00011425,2]
[400195463,1767189032168,-868.14139092,0.00011425,2]
[400195464,1767189032197,-410.6748855,0.00011425,2]
[400195465,1767189032209,-465.60265351,0.00011425,2]
[400195466,1767189032221,-905.22998422,0.00011425,2]
[400195473,1767189038200,-500.0,0.00011425,2]
[400195474,1767189038210,-425.82534972,0.00011425,2]
[400195475,1767189038219,-343.3138939,0.00011425,2]
[400195476,1767189038229,-500.0,0.00011425,2]
[400195477,1767189038239,-500.0,0.00011425,2]
[400195478,1767189038248,-500.0,0.00011425,2]
[400195479,1767189038258,-296.60515337,0.00011425,2]
[400195480,1767189038270,-203.39484663,0.00011425,2]
[400195481,1767189038279,-285.18051758,0.00011425,2]
[400195506,1767189046318,-176.39729847,0.00011002,2]
[400195507,1767189046328,-214.81948242,0.00011425,2]
[400195508,1767189046338,-500.0,0.00011425,2]
[400195509,1767189046348,-398.86061622,0.00011425,2]
[400195510,1767189046358,-500.0,0.00011425,2]
[400195511,1767189046368,-500.0,0.00011425,2]
[400195512,1767189046385,-500.0,0.00011425,2]
[400195513,1767189046396,-500.0,0.00011425,2]
[400195514,1767189046406,-500.0,0.00011425,2]
[400195515,1767189046416,-500.0,0.00011425,2]
[400195516,1767189046427,-500.0,0.00011425,2]
[400195517,1767189046436,-500.0,0.00011425,2]
[400195518,1767189046445,-281.62809064,0.00011425,2]
[400195519,1767189046454,-500.0,0.00011425,2]
[400195520,1767189046463,-362.42661654,0.00011425,2]
[400195521,1767189046472,-443.36775587,0.00011425,2]
[400195522,1767189046481,-500.0,0.00011425,2]
[400195523,1767189046490,-500.0,0.00011425,2]
[400195524,1767189046500,-500.0,0.00011425,2]
[400195525,1767189046509,-500.0,0.00011425,2]
[400195526,1767189046519,-500.0,0.00011425,2]
[400195527,1767189046528,-500.0,0.00011425,2]
[400195528,1767189046537,-500.0,0.00011425,2]
[400195529,1767189046547,-26400.71919728,0.00011425,2]
[400195530,1767189046557,-198.0,0.00011426,2]
[400195531,1767189046566,-463.40185122,0.00011427,2]
[400195532,1767189046575,-318.88297176,0.00011427,2]
[400195533,1767189046584,-250.0,0.00011457,2]
[400195534,1767189046593,-553.01054993,0.00011466,2]
[400195535,1767189046603,-500.0,0.00011466,2]
[400195536,1767189046612,-561.34551185,0.00011466,2]
[400195537,1767189046621,-500.0,0.00011466,2]
[400195538,1767189046630,-561.34551185,0.00011466,2]
[400195539,1767189046639,-461.80136358,0.00011466,2]
[400195540,1767189046672,257.4454729,0.00010855,2]
[400195607,1767189286861,-338.88304791,0.00011002,2]
[400195608,1767189286887,-231.87488627,0.00011002,2]
[400195609,1767189286912,-2125.31461646,0.00011002,2]
[400195610,1767189286938,-325.08723015,0.00011097,2]
[400195611,1767189286964,-300.0,0.00011191,2]
[400195612,1767189286990,-150.0,0.00011192,2]
[400195613,1767189287014,-150.0,0.00011192,2]
[400195614,1767189287103,-500.0,0.00011192,2]
[400195615,1767189287128,-150.0,0.00011192,2]
[400195616,1767189287153,-159.59435749,0.00011226,2]
[400195617,1767189287178,-150.0,0.00011226,2]
[400195618,1767189287203,-169.6762874,0.00011226,2]
[400195619,1767189287382,-73.13914864,0.00011226,2]
[400195624,1767189337276,-76.86085136,0.00011226,2]
[400195625,1767189337305,-150.0,0.00011226,2]
[400195626,1767189337331,-150.0,0.00011226,2]
[400195627,1767189337357,-150.0,0.00011226,2]
[400195628,1767189337385,-150.0,0.00011226,2]
[400195629,1767189337413,-196.432,0.00011238,2]
[400195630,1767189337439,-259.07332405,0.00011329,2]
[400195631,1767189337470,-150.91176931,0.00011329,2]
[400195632,1767189337609,-281.44411056,0.00011288,2]
[400195659,1767189585041,1728.0,0.00028,120]
[400195668,1767189714838,-157.146,0.00011044,2]
[400195669,1767189714864,-300.0,0.00011267,2]
[400195670,1767189714910,-368.988,0.00011268,2]
[400195671,1767189720492,-209.012,0.00011268,2]
[400195672,1767189720520,-300.0,0.00011268,2]
[400195673,1767189720548,-536.0,0.00011268,2]
[400195674,1767189720579,-500.0,0.00011268,2]
[400195675,1767189720606,-387.10738495,0.00011268,2]
[400195676,1767189720636,-605.40283565,0.00011268,2]
[400195677,1767189720664,-223.68925654,0.00011268,2]
[400195678,1767189720694,-605.40283565,0.00011268,2]
[400195679,1767189720722,-500.0,0.00011268,2]
[400195680,1767189720749,-605.40283565,0.00011268,2]
[400195681,1767189720777,-605.40283565,0.00011268,2]
[400195682,1767189720805,-605.40283565,0.00011268,2]
[400195683,1767189720833,-500.0,0.00011268,2]
[400195684,1767189720861,-362.67152487,0.00011268,2]
[400195685,1767189721076,-242.73131078,0.00011268,2]
[400195707,1767190108490,161.03544344,0.00010673,2]
[400195743,1767190232292,-267.16095414,0.00011145,7]
[400195745,1767190232302,-2479.43651336,0.00011145,2]
[400195746,1767190232312,-577.0,0.00011145,2]
[400195747,1767190232322,-326.59502301,0.00011169,2]
[400195748,1767190232331,-150.0,0.00011192,2]
[400195749,1767190232340,-150.0,0.00011192,2]
[400195750,1767190232349,-150.0,0.00011192,2]
[400195751,1767190232359,-150.0,0.00011192,2]
[400195752,1767190232372,-150.0,0.00011192,2]
[400195753,1767190232381,-150.0,0.00011192,2]
[400195754,1767190232391,-150.0,0.00011192,2]
[400195755,1767190232400,-770.66547876,0.00011229,2]
[400195756,1767190232410,-33.01474611,0.00011257,2]
[400195767,1767190238483,-752.55,0.00011206,2]
[400195768,1767190238496,-1675.23158599,0.00011206,2]
[400195769,1767190238506,-266.98525389,0.00011257,2]
[400195770,1767190238517,-500.0,0.00011257,2]
[400195771,1767190238527,-556.05844043,0.00011257,2]
[400195772,1767190238537,-500.0,0.00011257,2]
[400195773,1767190238549,-500.0,0.00011257,2]
[400195774,1767190238559,-500.0,0.00011257,2]
[400195775,1767190238570,-500.0,0.00011257,2]
[400195776,1767190238580,-500.0,0.00011257,2]
[400195777,1767190238590,-500.0,0.00011257,2]
[400195778,1767190238600,-385.70530569,0.00011257,2]
[400195779,1767190238610,-423.44912932,0.00011257,2]
[400195780,1767190238621,-500.0,0.00011257,2]
[400195781,1767190238631,-172.13127894,0.00011257,2]
[400195782,1767190238640,-26411.72837457,0.00011258,2]
[400195783,1767190238652,-17034.21923343,0.00011258,2]
[400195784,1767190238689,-3913.83063002,0.00011258,2]
[400195827,1767190246785,-2283.06733309,0.00011258,2]
[400195828,1767190246795,-833.0,0.00011259,2]
[400195829,1767190246804,-9918.63152653,0.00011262,2]
[400195841,1767190320117,418.05283605,0.00010663,2]
[400195862,1767190355763,4055.66720453,0.00010999,2]
[400195921,1767190446976,2089.99,0.00010999,2]
[400196052,1767190607265,1242.8447131,0.00010239,2]
[400196139,1767191065256,811.02432508,0.00010907,2]
[400196140,1767191068726,1824.80473143,0.00010907,2]
[400196141,1767191071832,1067.57517276,0.00010939,2]
[400196205,1767191271310,999.0,0.00010959,2]
[400196237,1767191353592,190.3949265,0.00010135,2]
[400196299,1767191432512,-300.0,0.00011053,2]
[400196300,1767191432521,-17.53537813,0.00011053,2]
[400196301,1767191432572,-282.46462187,0.00011053,2]
[400196302,1767191432582,-300.0,0.00011053,2]
[400196303,1767191432591,-300.0,0.00011053,2]
[400196304,1767191432601,-575.0,0.00011053,2]